Cogmind - Beta 16 @@@ ROGUE MODE // 2026.01.27 @ 22:42:32 Player: applejuice Result: Destroyed by S-27 Virus with Autogun Performance ------------- Evolutions (6) 3000 Regions Visited (9) 1800 Robots Destroyed (33) 165 Value Destroyed (915) 915 Prototype IDs (15) 300 Alien Tech Used (0) 0 Bonus (1164) 1164 TOTAL SCORE: 7344 Bonus ------- Pacifist 364 Registered with UFD 300 Met Optimus in HQ 500 Cogmind --------- Core Integrity 0/1150 Matter 255/300 Energy 100/100 System Corruption 6% Temperature Cool (9) Movement Hovering (70) Location -4/Extension Parts ------- > --- POWER (2) -------- (None) > --- PROPULSION (7) --- Gyrokinetic Inverter > --- UTILITY (8) ------ Improved Signal Interpreter System Shield > --- WEAPON (2) ------- (None) > --- INVENTORY (5) ---- Light Fission Core Component Analysis Suite Improved Heavy Machine Gun Point Singularity Launcher Companion Sword Peak State ------------ > --- POWER ------------ Ion Engine Light Fission Core > --- PROPULSION ------- Improved Gravmag System Improved Gravmag System Improved Gravmag System Improved Gravmag System Improved Gravmag System > --- UTILITY ---------- Improved Heat Sink Improved Heat Sink Small Storage Unit Experimental Sensor Array Advanced Targeting Computer Improved System Shield > --- WEAPON ----------- Heavy Machine Gun Heavy Machine Gun > --- INVENTORY -------- Light Ion Engine Salvaging Laser Ion Cannon Flak Gun Flak Cannon Heavy Rocket Launcher CPS Tube Companion Sword [Rating: 67] Favorites ----------- Power Ion Engine Engine Ion Engine Power Core Light Nuclear Core Propulsion Improved Gravmag System Leg Aluminum Leg Hover Unit Improved Gravmag System Flight Unit VTOL Module Utility Small Storage Unit Device Experimental Sensor Array Storage Small Storage Unit Processor Improved Signal Interpreter Hackware System Shield Protection Improved Propulsion Shielding Weapon Companion Sword Energy Gun Salvaging Laser Energy Cannon Ion Cannon Ballistic Gun Light Assault Rifle Ballistic Cannon Flak Cannon Launcher Heavy Rocket Launcher Special Weapon CPS Tube Slashing Weapon Companion Sword Build | -11 -10 -10 -8 -6 -5 -4 -4 -4 -4 ------- Run | Yrd Mat Sub Scr Fac Fac Fac Was Fac Ext Slots Evolved 12 | . . . . 8 2 2 . . . Power 1 | . . . . 1 . . . . . Propulsion 5 | . . . . 3 1 1 . . . Utility 6 | . . . . 4 1 1 . . . Weapon . | . . . . . . . . . . Parts Attached 71 | 6 . 3 6 37 5 11 2 1 . Power 12 | 1 . . . 7 2 2 . . . Engine 2 | 1 . . . 1 . . . . . Core 10 | . . . . 6 2 2 . . . Reactor . | . . . . . . . . . . Propulsion 22 | 2 . 1 1 10 . 6 1 1 . Treads . | . . . . . . . . . . Leg 5 | 2 . 1 1 . . . 1 . . Wheel . | . . . . . . . . . . Hover 11 | . . . . 9 . 1 . 1 . Flight 6 | . . . . 1 . 5 . . . Utility 22 | 1 . 1 2 12 3 3 . . . Device 12 | . . 1 1 7 1 2 . . . Storage 2 | 1 . . . . . 1 . . . Processor 4 | . . . 1 2 1 . . . . Hackware 3 | . . . . 2 1 . . . . Protection 1 | . . . . 1 . . . . . Artifact . | . . . . . . . . . . Weapon 15 | 2 . 1 3 8 . . 1 . . Energy Gun 2 | 1 . 1 . . . . . . . Energy Cannon 1 | . . . 1 . . . . . . Ballistic Gun 7 | 1 . . . 6 . . . . . Ballistic Cannon 1 | . . . 1 . . . . . . Launcher 2 | . . . . 1 . . 1 . . Special Weapon 1 | . . . . 1 . . . . . Impact Weapon . | . . . . . . . . . . Slashing Weapon 1 | . . . 1 . . . . . . Piercing Weapon . | . . . . . . . . . . Special Melee Weapon . | . . . . . . . . . . Unidentified Prototypes 3 | . . . 1 1 . . 1 . . Parts Lost 35 | . . 1 . 18 2 11 1 1 1 Power 8 | . . . . 5 . 3 . . . Propulsion 14 | . . . . 6 . 6 1 . 1 Utility 9 | . . . . 5 2 1 . 1 . Weapon 4 | . . 1 . 2 . 1 . . . Highest Loss Streak 8 | . . 1 . 8 2 6 1 1 1 To Critical Strikes . | . . . . . . . . . . Average Backups 5 | 1 2 2 6 7 3 3 5 5 5 Power . | . 1 1 1 . . . 1 1 1 Propulsion 1 | . . . 1 1 . . . . . Utility . | . . . . . . . 1 1 1 Weapon 3 | . 1 1 3 3 3 2 3 3 3 Tool/Special . | . . . . . . . . . . Unused Backups 7 | . . . 1 6 . . . . . Power 1 | . . . . 1 . . . . . Propulsion 3 | . . . . 3 . . . . . Utility 1 | . . . . 1 . . . . . Weapon 2 | . . . 1 1 . . . . . Tool/Special . | . . . . . . . . . . Average Slot Usage (%) 79 | . 85 90 94 84 44 55 26 21 20 Engine 8 | . 14 14 14 5 . . . . . Core 1 | . . . . 4 1 9 . . . Leg 14 | . 28 28 28 1 . . . 5 4 Hover 8 | . . . . 25 5 5 3 1 5 Device 8 | . . 7 6 12 9 5 5 3 . Storage 9 | . 14 14 14 5 . 3 3 . . Processor 4 | . . . 2 5 9 10 8 5 5 Hackware 2 | . . . . 4 9 5 5 5 5 Energy Gun 1 | . 14 11 1 . . . . . . Energy Cannon 1 | . . . 4 . . . . . . Ballistic Gun 3 | . 14 14 1 6 . . . . . Ballistic Cannon 5 | . . . 13 . . . . . . Slashing Weapon 4 | . . . 8 3 5 5 . . . Peak Build Rating 67 | 6 6 8 26 67 39 66 34 31 24 Average Rating 30 | 4 6 6 18 54 36 48 22 24 22 On Entrance 19 | . 6 6 8 26 28 39 30 25 24 Avg Prop Armor Cover (%) 9 | . . . . 4 . 6 . 28 28 Naked Turns . | . . . . . . . . . . Heaviest Build 43 | 13 13 14 22 43 19 37 11 1 . Greatest Support 50 | 20 20 20 28 50 20 31 30 30 11 Greatest Overweight (x) 4 | 4 . . 1 1 . 3 . . . Average Overweight (x) . | . . . . . . . . . . Largest Inventory Capacity 10 | 8 8 8 8 8 5 10 10 5 5 Average Capacity 7 | 7 8 8 8 7 5 9 8 5 5 Most Carried 8 | 2 2 3 8 8 4 4 6 5 5 Average Carried 6 | 1 2 2 6 7 3 3 5 5 5 Final Capacity 10 | 8 8 8 8 5 5 10 5 5 5 Final Carried 8 | 2 2 3 8 5 3 4 5 5 5 Class Distribution -------------------- 89% | Mutant 6% | Scavenger-Mutant 3% | Hacker-Mutant Dominant Class ---------------- Mutant | -10/Materials Mutant | -10/Subcaves Mutant | -8/Scraptown Mutant | -6/Factory Hacker-Mutant | -5/Factory Mutant | -4/Factory Mutant | -4/Waste Mutant | -4/Factory Mutant | -4/Extension Resources | -11 -10 -10 -8 -6 -5 -4 -4 -4 -4 ----------- Run | Yrd Mat Sub Scr Fac Fac Fac Was Fac Ext Matter Collected 1004 | 156 . 115 79 381 116 74 . 5 78 Remotely . | . . . . . . . . . . Salvage Created 1057 | . . . . 844 116 97 . . . Parts 69 | . . . . 50 6 13 . . . Haulers Intercepted 2 | . . . . 1 1 . . . . Recyclers Shooed 3 | . . . . 3 . . . . . Parts Field Recycled . | . . . . . . . . . . Retrieved Matter . | . . . . . . . . . . Parts Self-Destructed 9 | . . 9 . . . . . . . Prevented . | . . . . . . . . . . Parts Restored . | . . . . . . . . . . Kills | -11 -10 -10 -8 -6 -5 -4 -4 -4 -4 ------- Run | Yrd Mat Sub Scr Fac Fac Fac Was Fac Ext Combat Hostiles Destroyed 24 | . . . . 18 1 5 . . . Melee 9 | . . . . 3 1 5 . . . Guns 9 | . . . . 9 . . . . . AOE 6 | . . . . 6 . . . . . Classes Destroyed 8 | . . . . 8 . . . . . Worker 3 | . . . . 3 . . . . . Builder 3 | . . . . 2 . 1 . . . Hauler 2 | . . . . 1 1 . . . . Recycler 1 | . . . . 1 . . . . . Swarmer 17 | . . . . 11 1 5 . . . Grunt 3 | . . . . 3 . . . . . Sentry 2 | . . . . 2 . . . . . Programmer 2 | . . . . 2 . . . . . Best Kill Streak 9 | . . . . 9 2 4 . . . Combat Bots Only 8 | . . . . 8 1 4 . . . Max Kills in Single Turn 3 | . . . . 3 1 1 . . . Gunslinging . | . . . . . . . . . . Exploded 3 | . . . . 3 . . . . . Melee 1 | . . . . 1 1 1 . . . Uniques/NPCs Destroyed . | . . . . . . . . . . Combat | -11 -10 -10 -8 -6 -5 -4 -4 -4 -4 -------- Run | Yrd Mat Sub Scr Fac Fac Fac Was Fac Ext Hostile Shots Fired 448 | . . 24 1 210 39 99 1 42 32 Missed 166 | . . 12 . 80 20 27 . 17 10 Hits 282 | . . 12 1 130 19 72 1 25 22 Melee 1 | . . . . . . . 1 . . Projectile 281 | . . 12 1 130 19 72 . 25 22 AOE 5 | . . . . 5 . . . . . Critical Strikes 2 | . . 1 . 1 . . . . . Part Disruptions 1 | . . . . 1 . . . . . Damage Taken 4761 | . . 303 25 1855 326 1168 59 619 406 Core 1560 | . . 88 . 225 97 363 59 420 308 Absorbed by Shields 118 | . . . . 118 . . . . . Redirected to Shielding 103 | . . . . 103 . . . . . Core Remaining (%) 81 | 100 . . 64 73 90 . . . . Volleys Fired 31 | . . 5 . 25 . 1 . . . Largest 2 | . . 2 . 2 . 1 . . . Hottest 70 | . . 70 . 60 . 39 . . . Shots Fired 54 | . . 10 . 43 . 1 . . . Gun 46 | . . 10 . 36 . . . . . Cannon . | . . . . . . . . . . Launcher 7 | . . . . 6 . 1 . . . Special 1 | . . . . 1 . . . . . Kinetic 41 | . . 5 . 36 . . . . . Thermal 5 | . . 5 . . . . . . . Explosive 7 | . . . . 6 . 1 . . . Electromagnetic . | . . . . . . . . . . Robot Hit Streak 8 | . . 8 . 5 . 2 . . . Robot Miss Streak 5 | . . 1 . 5 . . . . . Penetration Max . | . . . . . . . . . . Secondary Targets 4 | . . . . 4 . . . . . Max Gunslinging Chain 1 | . . . . 1 . . . . . Shots Hit Robots 71 | . . 9 . 49 4 9 . . . Core Hits 43 | . . . . 32 1 10 . . . Critical Kills 1 | . . . . 1 . . . . . Critical Parts Destroyed . | . . . . . . . . . . Critical Strikes 3 | . . . . 1 . 2 . . . Destroy 1 | . . . . 1 . . . . . Melee Attacks 58 | . . . . 34 6 18 . . . Impact . | . . . . . . . . . . Slashing 58 | . . . . 34 6 18 . . . Piercing . | . . . . . . . . . . Sneak Attacks 12 | . . . . 9 2 1 . . . Combat Hostiles 1 | . . . . . 1 . . . . Follow-up Attacks . | . . . . . . . . . . Damage Inflicted 3383 | . . . . 2487 280 614 . . 2 Guns 490 | . . . . 490 . . . . . Cannons . | . . . . . . . . . . Explosions 952 | . . . . 717 . 235 . . . Melee 1939 | . . . . 1280 280 379 . . . Ramming 2 | . . . . . . . . . 2 Kinetic 490 | . . . . 490 . . . . . Thermal . | . . . . . . . . . . Explosive 952 | . . . . 717 . 235 . . . Electromagnetic . | . . . . . . . . . . Impact . | . . . . . . . . . . Slashing 1939 | . . . . 1280 280 379 . . . Piercing . | . . . . . . . . . . Highest Corruption 6 | . . . . 4 . . 6 6 6 Average Corruption 3 | . . . . 1 . . 6 6 6 Corruption Purged . | . . . . . . . . . . Corruption Blocked . | . . . . . . . . . . Effects 7 | . . . . 2 . . 2 3 . Message Errors 3 | . . . . . . . 2 1 . Heat Flow Errors 1 | . . . . 1 . . . . . Energy Discharges 1 | . . . . . . . . 1 . Parts Rejected 1 | . . . . 1 . . . . . Data Loss (minor) 1 | . . . . . . . . 1 . Overload Shots . | . . . . . . . . . . Overflow Damage 323 | . . . . 214 25 84 . . . Projectiles . | . . . . . . . . . . Explosions 93 | . . . . 9 . 84 . . . Melee 230 | . . . . 205 25 . . . . Knockbacks . | . . . . . . . . . . Impact . | . . . . . . . . . . Kinetic . | . . . . . . . . . . Secondary . | . . . . . . . . . . Self-Inflicted Damage 1 | . . . . . . . . . 1 Shots . | . . . . . . . . . . Rammed 1 | . . . . . . . . . 1 Targets Rammed 1 | . . . . . . . . . 1 Kicked . | . . . . . . . . . . Crushed . | . . . . . . . . . . Highest Temperature 89 | . . 10 . 89 . . . . . Average Temperature 26 | . . 8 . 32 . . . . . Received Heat Transfer 417 | . . 93 12 114 90 18 . 45 45 Siege Activations . | . . . . . . . . . . Martial Activations . | . . . . . . . . . . Shielding Activations . | . . . . . . . . . . Robots Disrupted . | . . . . . . . . . . Combat Hostiles . | . . . . . . . . . . Robots Corrupted . | . . . . . . . . . . Combat Hostiles . | . . . . . . . . . . Parts Fried . | . . . . . . . . . . Impact Corruptions . | . . . . . . . . . . Robots Melted . | . . . . . . . . . . Combat Hostiles . | . . . . . . . . . . Parts Melted . | . . . . . . . . . . Heat Transferred . | . . . . . . . . . . Parts Sabotaged . | . . . . . . . . . . Parts Stolen . | . . . . . . . . . . Parts Stripped . | . . . . . . . . . . Power Chain Reactions . | . . . . . . . . . . Alert | -11 -10 -10 -8 -6 -5 -4 -4 -4 -4 ------- Run | Yrd Mat Sub Scr Fac Fac Fac Was Fac Ext Maximum Alert Level 1 | . . . . 1 . . . . . Low Security (%) 97 | 100 100 . . 96 100 100 100 100 100 Level 1 2 | . . . . 3 . . . . . Level 2 . | . . . . . . . . . . Level 3 . | . . . . . . . . . . Level 4 . | . . . . . . . . . . Level 5 . | . . . . . . . . . . High Security . | . . . . . . . . . . Max Security . | . . . . . . . . . . Peak Influence 206 | . . . . 206 52 85 . 5 2 Initial 52 | . . . . . 52 23 . . 2 Average 50 | . . . . 72 38 41 . . . Influence Increases 808 | . . . . 582 57 154 . 15 . Destroy 0b10 Robot/C 480 | . . . . 360 20 100 . . . Destroy 0b10 Robot/NC 45 | . . . . 35 5 5 . . . Destroy Leader 84 | . . . . 72 2 10 . . . Successful Hack 22 | . . . . 22 . . . . . Disable Machine 30 | . . . . 30 . . . . . Destroy Structure 42 | . . . . 18 . 24 . . . Partial Spotted 15 | . . . . . . . . 15 . Lose Combat Pursuer 90 | . . . . 45 30 15 . . . Influence Decreases 808 | . . . . 474 116 203 . 10 5 Entered New Map 85 | . . . . . 56 26 . . 3 Time Decay 446 | . . . . 304 40 90 . 10 2 Lost Part 277 | . . . . 170 20 87 . . . Squads Dispatched 3 | . . . . 3 . . . . . Investigation 1 | . . . . 1 . . . . . Extermination 1 | . . . . 1 . . . . . Reinforcement 1 | . . . . 1 . . . . . Assault . | . . . . . . . . . . Garrison . | . . . . . . . . . . Intercept . | . . . . . . . . . . Searches Triggered . | . . . . . . . . . . Construction Impeded . | . . . . . . . . . . Haulers Reinforced . | . . . . . . . . . . Active Scanning Responses . | . . . . . . . . . . Cargo Convoy Interrupts 1 | . . . . 1 . . . . . Stealth | -11 -10 -10 -8 -6 -5 -4 -4 -4 -4 --------- Run | Yrd Mat Sub Scr Fac Fac Fac Was Fac Ext Distress Signals . | . . . . . . . . . . Communications Jammed 3 | . . . . 3 . . . . . Distress Signals 3 | . . . . 3 . . . . . Times Spotted 77 | . . 4 2 35 7 14 6 2 7 Peak Tracking Total 12 | . . 2 2 12 5 8 6 2 7 Tactical Retreats 5 | . . . . 3 1 1 . . . Traps | -11 -10 -10 -8 -6 -5 -4 -4 -4 -4 ------- Run | Yrd Mat Sub Scr Fac Fac Fac Was Fac Ext Traps Triggered 4 | . . . . 2 1 1 . . . Indirectly . | . . . . . . . . . . Trap Hack Attempts . | . . . . . . . . . . Triggered . | . . . . . . . . . . Disarmed . | . . . . . . . . . . Reprogrammed . | . . . . . . . . . . Reused . | . . . . . . . . . . Traps Extracted . | . . . . . . . . . . Installed . | . . . . . . . . . . Triggered . | . . . . . . . . . . Machines | -11 -10 -10 -8 -6 -5 -4 -4 -4 -4 ---------- Run | Yrd Mat Sub Scr Fac Fac Fac Was Fac Ext Machines Disabled 2 | . . . . 2 . . . . . Max in Single Turn 1 | . . . . 1 . . . . . Machines Repaired . | . . . . . . . . . . Machines Dismantled . | . . . . . . . . . . Machines Sabotaged . | . . . . . . . . . . Overloaded Fab Kills . | . . . . . . . . . . Hacking | -11 -10 -10 -8 -6 -5 -4 -4 -4 -4 --------- Run | Yrd Mat Sub Scr Fac Fac Fac Was Fac Ext Machines Accessed 10 | . . . 5 4 . . . 1 . Terminals 4 | . . . . 3 . . . 1 . Fabricators 1 | . . . . 1 . . . . . Repair Stations . | . . . . . . . . . . Recycling Units . | . . . . . . . . . . Scanalyzers . | . . . . . . . . . . Garrison Access . | . . . . . . . . . . Total Hacks 26 | . . . 14 11 . . . 1 . Successful 20 | . . . 14 5 . . . 1 . Failed 6 | . . . . 6 . . . . . Catastrophic 3 | . . . . 3 . . . . . Database Lockouts . | . . . . . . . . . . Manual 10 | . . . . 10 . . . . . Terminals 11 | . . . . 10 . . . 1 . Fabricators 1 | . . . . 1 . . . . . Repair Stations . | . . . . . . . . . . Recycling Units . | . . . . . . . . . . Scanalyzers . | . . . . . . . . . . Garrison Access . | . . . . . . . . . . Terminal Hacks 17 | . . . 14 2 . . . 1 . Record 12 | . . . 12 . . . . . . Part Schematic 1 | . . . . 1 . . . . . Open Door 2 | . . . 1 . . . . 1 . Terminal Index 1 | . . . . 1 . . . . . Proto ID Catalog 1 | . . . 1 . . . . . . Fabricator Hacks 1 | . . . . 1 . . . . . Network Status 1 | . . . . 1 . . . . . Repair Station Hacks . | . . . . . . . . . . Recycling Unit Hacks . | . . . . . . . . . . Scanalyzer . | . . . . . . . . . . Garrison Access Hacks . | . . . . . . . . . . Unauthorized Hacks 2 | . . . . 2 . . . . . Terminals 2 | . . . . 2 . . . . . Botnet 2 | . . . . 2 . . . . . Fabricators . | . . . . . . . . . . Repair Stations . | . . . . . . . . . . Recycling Units . | . . . . . . . . . . Scanalyzers . | . . . . . . . . . . Garrison Access . | . . . . . . . . . . Data Cores Recovered . | . . . . . . . . . . Used . | . . . . . . . . . . Hacking Detections 4 | . . . . 4 . . . . . Full Trace Events 1 | . . . . 1 . . . . . Feedback Events . | . . . . . . . . . . Feedback Blocked . | . . . . . . . . . . Robot Schematics Acquired . | . . . . . . . . . . Robots Built . | . . . . . . . . . . Authchips . | . . . . . . . . . . Time . | . . . . . . . . . . Total Robot Build Rating . | . . . . . . . . . . Part Schematics Acquired 1 | . . . . 1 . . . . . Parts Built . | . . . . . . . . . . Authchips . | . . . . . . . . . . Time . | . . . . . . . . . . Total Part Build Rating . | . . . . . . . . . . Part Studies Acquired . | . . . . . . . . . . Parts Repaired . | . . . . . . . . . . Time . | . . . . . . . . . . Parts Recycled . | . . . . . . . . . . Recycled Matter . | . . . . . . . . . . Retrieved Matter . | . . . . . . . . . . Retrieved Components . | . . . . . . . . . . Parts Scanalyzed . | . . . . . . . . . . Part Schematics Acquired . | . . . . . . . . . . Parts Damaged . | . . . . . . . . . . Bothacking | -11 -10 -10 -8 -6 -5 -4 -4 -4 -4 ------------ Run | Yrd Mat Sub Scr Fac Fac Fac Was Fac Ext Used RIF Installer . | . . . . . . . . . . Robots Hacked . | . . . . . . . . . . Non-combat . | . . . . . . . . . . Combat . | . . . . . . . . . . Robot Hacks Applied . | . . . . . . . . . . Relay Couplers Released . | . . . . . . . . . . Fabnet Peak Effective % . | . . . . . . . . . . Robots Rewired 1 | . . . . . . . . . 1 Allies Hacked . | . . . . . . . . . . Hacks Repelled . | . . . . . . . . . . Allies | -11 -10 -10 -8 -6 -5 -4 -4 -4 -4 -------- Run | Yrd Mat Sub Scr Fac Fac Fac Was Fac Ext Total Allies 1 | . . . . . . . . . 1 Largest Group 1 | . . . . . . . . . 1 Highest-Rated Group 38 | . . . . . . . . . 38 Highest-Rated Ally 38 | . . . . . . . . . 38 Total Orders . | . . . . . . . . . . Ally Attacks 1 | . . . . . . . . . 1 Total Damage . | . . . . . . . . . . Kills . | . . . . . . . . . . Allies Corrupted . | . . . . . . . . . . Allies Melted 1 | . . 1 . . . . . . . Intel | -11 -10 -10 -8 -6 -5 -4 -4 -4 -4 ------- Run | Yrd Mat Sub Scr Fac Fac Fac Was Fac Ext Active Infowar (turns) 1370 | . . 120 519 729 2 . . . . Optics 120 | . . 120 . . . . . . . Sensors 1155 | . . . 519 636 . . . . . Cloaking 2 | . . . . . 2 . . . . Jamming 250 | . . . . 248 2 . . . . ECM 24 | . . . . 24 . . . . . Robot Analysis Total . | . . . . . . . . . . Derelict Logs Recovered . | . . . . . . . . . . Drone Launches . | . . . . . . . . . . Drone Recoveries . | . . . . . . . . . . Exploration | -11 -10 -10 -8 -6 -5 -4 -4 -4 -4 ------------- Run | Yrd Mat Sub Scr Fac Fac Fac Was Fac Ext Turns Passed 2931 | 60 35 308 1109 882 92 196 87 118 44 Spaces Moved 2634 | 39 23 212 829 1034 118 136 100 112 31 Core 55 | 15 . . . . . . 40 . . Treads . | . . . . . . . . . . Legs 1230 | 24 23 212 829 72 . . 5 65 . Wheels . | . . . . . . . . . . Hover 1308 | . . . . 962 118 95 55 47 31 Flight 41 | . . . . . . 41 . . . Fastest Speed 24 | 50 120 120 120 44 60 24 50 80 80 Average Speed 91 | 128 120 120 131 56 60 87 64 103 80 Slowest Speed 250 | 250 120 120 190 130 60 190 120 120 80 Overloaded Moves . | . . . . . . . . . . Propulsion Burnouts . | . . . . . . . . . . Robots Hopped . | . . . . . . . . . . Potential Cave-ins . | . . . . . . . . . . Cave-ins Triggered . | . . . . . . . . . . Exploration Rate (%) 21 | 4 5 23 52 27 5 5 83 5 10 Regions Visited 9 Branch Regions 3 Pre-discovered Areas . | . . . . . . . . . . Known Exits Taken 3 | . . . . 1 1 . . 1 . Unknown Exits Taken 4 | 1 1 1 1 . . . . . . Scrap Searched 3 | . . . 3 . . . . . . Spaces Dug 5 | . . . . 4 . 1 . . . Terrain Destroyed 78 | . . . . 68 . 10 . . . Melee 5 | . . . . 4 . 1 . . . Projectile . | . . . . . . . . . . AOE 73 | . . . . 64 . 9 . . . Terrain Rammed . | . . . . . . . . . . Walls Destroyed . | . . . . . . . . . . Machines Disabled . | . . . . . . . . . . Actions | -11 -10 -10 -8 -6 -5 -4 -4 -4 -4 --------- Run | Yrd Mat Sub Scr Fac Fac Fac Was Fac Ext Total 3023 | 46 30 255 846 1249 128 183 122 113 51 Wait 125 | . 8 36 1 46 . 14 19 1 . Move 2626 | 38 22 211 828 1033 117 136 99 111 31 Hop . | . . . . . . . . . . Pick Up 20 | 2 . . 2 16 . . . . . Fast Attach 60 | 6 . 2 6 29 3 11 2 1 . Attach 11 | . . . . 8 2 1 . . . Detach 17 | . . . 6 7 . 2 2 . . Swap 6 | . . 1 . 5 . . . . . Drop 34 | . . . 2 32 . . . . . Fire 31 | . . 5 . 25 . 1 . . . Melee 58 | . . . . 34 6 18 . . . Ram 1 | . . . . . . . . . 1 Kick . | . . . . . . . . . . Crush . | . . . . . . . . . . Escape Stasis 14 | . . . . 14 . . . . . Rewire 20 | . . . 1 . . . . . 19 Trap . | . . . . . . . . . . Miscellaneous . | . . . . . . . . . . Route ------- -11/Scrapyard -10/Materials -10/Subcaves (discovered 2 exits: [*Mat] / *Scr) -8/Scraptown -6/Factory -5/Factory -4/Factory -4/Waste -4/Factory -4/Extension History --------- Turn | Location | Event 25 | -11/Scrapyard | Discovered new exit (range 15) 61 | -11/Scrapyard | Entered Materials 62 | -10/Materials | Met a group of wandering Federalists 89 | -10/Materials | Discovered new exit (range 7) 96 | -10/Materials | Entered Subcaves 96 | -10/Subcaves | Accompanied by 4 allies 97 | -10/Subcaves | Continued accompanying wandering Federalists (5) 97 | -10/Subcaves | Approached by a straggling Scientist 223 | -10/Subcaves | Lost 3 allies 309 | -10/Subcaves | Build established: Mutant 336 | -10/Subcaves | A swath of the cavern ceiling suddenly collapsed 363 | -10/Subcaves | Discovered new exit (range 14) 404 | -10/Subcaves | Entered Scraptown 666 | -8/Scraptown | Visited UFD Registry 666 | -8/Scraptown | Registered with UFD as "Shortgrid" 715 | -8/Scraptown | Visited Junk Repository 850 | -8/Scraptown | Visited Sword Containment 864 | -8/Scraptown | Found Prototype Slashing Weapon 864 | -8/Scraptown | Identified Companion Sword 931 | -8/Scraptown | Visited Scrap Suit Storage 986 | -8/Scraptown | Visited Infowarlord's Domain 994 | -8/Scraptown | Found Exp. Sensor Array 1020 | -8/Scraptown | Visited Science Guys 1152 | -8/Scraptown | Visited Abandonware Association 1171 | -8/Scraptown | Learned abandonware demo "SHUTEYE.EXE" 1171 | -8/Scraptown | Learned abandonware demo "TRNCOAT.EXE" 1200 | -8/Scraptown | Visited Scrapoid Research Area 1230 | -8/Scraptown | Visited LU-1G1's Boring Crew 1315 | -8/Scraptown | Visited A0-MCA Data Center 1322 | -8/Scraptown | Given a B+ rating by A0-MCA 1394 | -8/Scraptown | Met Optimus 1394 | -8/Scraptown | Accepted into 0bPrime 1500 | -8/Scraptown | Civil war broke out across Scraptown 1506 | -8/Scraptown | Discovered new exit (range 5) 1513 | -8/Scraptown | Entered Factory 1513 | -6/Factory | Evolved 8 slots: Power x1, Propulsion x3, Utility x4 1807 | -6/Factory | Lost 4 parts (1p1n2u) 1814 | -6/Factory | Destroyed 8 combat bots 2072 | -6/Factory | Spotted B-75 Beast 2238 | -6/Factory | Attached CPS modules to O-16 Technician. 2336 | -6/Factory | Destroyed 7 combat bots 2342 | -6/Factory | Lost 4 parts (1p2u1w) 2351 | -6/Factory | Cargo convoy interrupted 2386 | -6/Factory | Discovered new exit (range 15) 2393 | -6/Factory | Identified exit to Factory 2395 | -6/Factory | Entered another Factory area 2395 | -5/Factory | Evolved 2 slots: Propulsion x1, Utility x1 2418 | -5/Factory | Lost 8 parts (2p5n1u) 2484 | -5/Factory | Discovered new exit (range 5) 2486 | -5/Factory | Identified exit to Factory 2487 | -5/Factory | Entered another Factory area 2487 | -4/Factory | Evolved 2 slots: Propulsion x1, Utility x1 2605 | -4/Factory | Lost 4 parts (1p1n1u1w) 2683 | -4/Factory | Sucked down chute 2683 | -4/Factory | Entered Waste 2690 | -4/Waste | Found Prototype Launcher 2690 | -4/Waste | Identified Point Singularity Launcher 2698 | -4/Waste | EMP discharged 2709 | -4/Waste | Lost 6 parts (2p4n) 2711 | -4/Waste | Spotted C-40 Crusher 2724 | -4/Waste | Spotted C-40 Crusher 2724 | -4/Waste | Spotted C-40 Crusher 2732 | -4/Waste | Spotted C-40 Crusher 2734 | -4/Waste | Spotted C-40 Crusher 2742 | -4/Waste | Spotted C-40 Crusher 2743 | -4/Waste | Crushed by Compactor (1 part destroyed, 2 dropped) 2751 | -4/Waste | Discovered new exit (range 16) 2758 | -4/Waste | Identified exit to Factory 2770 | -4/Waste | Entered Factory 2802 | -4/Factory | Spotted B-86 Titan 2812 | -4/Factory | Core integrity fell below 50% 2871 | -4/Factory | Discovered new exit (range 6) 2873 | -4/Factory | Identified exit to Extension 2888 | -4/Factory | Entered Extension 2927 | -4/Extension | Core integrity fell below 20% 2932 | -4/Extension | Destroyed by S-27 Virus with Autogun Last Messages --------------- 02923_ 04-C9C(g) destroyed. 02923_ Centrium Leg destroyed. 02923_ Slug penetrates Wall. 02923_ Attempting to rewire HO-W9A(l). 02926_ Penetrated by Slug. 02926_ Attempting to rewire HO-W9A(l). 02928_ R-10 Processor collects Lgt. Nuclear Core. 02928_ Attempting to rewire HO-W9A(l). 02929_ Slug penetrates Wall. 02929_ Slammed into Y-64 Sentinel. 02930_ Acquired 78 matter. 02930_ Attempting to rewire HO-W9A(l). 02931_ Penetrated by Slug. 02931_ S-27 Virus destroyed. 02931_ Attempting to rewire HO-W9A(l). 02931_ R-10 Processor collects Flexi-carbon Leg. 02932_ R-10 Processor collects Imp. Melee Analysis Suite. 02932_ Attempting to rewire HO-W9A(l). Map ----- +----------------------------------------------------+ | | | | | | | | | | | | | | | | | | | | | | | | | ???????????????????????????????????????? | | ???????????????????????????????????????? | | ?????#######???????????????????????????? | | ?????# ????????????????????????????? | | ?????# ????????????????????????????? | | ?????# ????????????????????????????? | | ?????# ????????????????????????????? | | ?????# ????????????????????????????? | | ?????# #????????????????????????????? | | ?????# #?????##?????????????????????? | | ?????# ######;#?????????????????????? | | ?????# # = #?????????????????????? | | ?????# #s [s! #?????????????????????? | | ?????# + s%*@Y#?????????????????????? | | ?????# # YlR#?????????????????????? | | ?????# # h*R#?????????????????????? | | ?????# # /%+?????????????????????? | | ?????# #########????????????????????? | | ?????# #????????????????????????????? | | ?????# #????????????????????????????? | | ?????# #????????????????????????????? | | ?????# #????????????????????????????? | | ?????# #????????????????????????????? | | ?????# #????????????????????????????? | | ?????# #????????????????????????????? | | ?????# #????????????????????????????? | | ?????# ####????????????????????????????? | | ?????# #???????????????????????????????? | | ?????# #???????????????????????????????? | | ?????# #???????????????????????????????? | | ?????# #???????????????????????????????? | | ?????# #???????????????????????????????? | | ?????# #???????????????????????????????? | | ?????# #???????????????????????????????? | | ?##### #####???????????????????????????? | | ?# "" "" #???????????????????????????? | | ?# " " ##########??????????????????? | | ?# ?????????????????? | +----------------------------------------------------+ Best States ------------- Heat Dissipation 65 Energy Generation 31 Energy Capacity 500 Matter Stores 300 Matter Capacity 300 Sight Range 21 Robot Scan Range 20 Terrain Scan Density 10 ECM Strength 1 Jamming Range 12 Base Temperature (-) 200 Propulsion Shielding 66 Evasion (%) 56 Targeting Accuracy 8 Offensive Hacking 10 Defensive Hacking 12 Item Schematics ----------------- Adv. ECM Suite | -6/Factory | Hacked Robot Schematics ------------------ None Fabricated ------------ Nothing Repaired ---------- Nothing Studied --------- None Alien Tech Used ----------------- None Achievements -------------- Uncivil War Challenges ------------ None Game ------ Seed CoolingRainbowSuite Manual? 0 Play Time 00:40:07 Cumulative 37.5 hours Start 2026.01.27 @ 22:01:54 End 2026.01.27 @ 22:42:32 Sessions 1 Manual Loads 0 Difficulty Rogue Special Mode None Game No. 44 Rogue 44 Adventurer 0 Explorer 0 Win Type - Total 0 Types 0/0/0/0/0/0/0/0/0/0 Lore% 32 Gallery% 33 Achievement% 28 Wizard Run 0 Options --------- Layout 1 ASCII 0 Keyboard 1 Movement Numpad Keybinds 0 Fullscreen 1 Font 48/Smallcaps Map View 50x35 Zoom Use 0% Tactical HUD 1 Map Filters NONE Filters NONE Steam 1 RUN: 36bdd9e6-cf0a-4dc6-9ab7-99a60de76abf